fUST/lending_fUST_20250702
["ID","MTS","AMOUNT","RATE_DAILY","PERIOD"]
[369052615,1751446243601,-727.14,0.00016438,2]
[369052617,1751446243610,-460.0,0.00016438,2]
[369052619,1751446243619,-2275.66,0.00016438,2]
[369052621,1751446243628,-460.0,0.00016438,2]
[369052622,1751446243637,-460.0,0.00016438,2]
[369052623,1751446243647,-460.0,0.00016438,2]
[369052624,1751446243656,-538.53,0.00016438,2]
[369052625,1751446243665,-460.0,0.00016438,2]
[369052626,1751446243674,-460.0,0.00016438,2]
[369052627,1751446243683,-460.0,0.00016438,2]
[369052628,1751446243692,-460.0,0.00016438,2]
[369052629,1751446243701,-460.0,0.00016438,2]
[369052630,1751446243710,-460.0,0.00016438,2]
[369052631,1751446243719,-460.0,0.00016438,2]
[369052632,1751446243728,-461.57251548,0.00016438,2]
[369052633,1751446243737,-460.0,0.00016438,2]
[369052634,1751446243746,-460.0,0.00016438,2]
[369052635,1751446243760,-460.0,0.00016438,2]
[369052636,1751446243769,-532.83,0.00016438,2]
[369052637,1751446243778,-460.0,0.00016438,2]
[369052638,1751446243788,-4977.12,0.00016438,2]
[369052639,1751446243797,-968.78,0.00016438,2]
[369052641,1751446243807,-460.0,0.00016438,2]
[369052643,1751446243816,-460.0,0.00016438,2]
[369052645,1751446243826,-460.0,0.00016438,2]
[369052647,1751446243836,-500.0,0.00016438,2]
[369052649,1751446243846,-500.0,0.00016438,2]
[369052651,1751446243855,-460.0,0.00016438,2]
[369052653,1751446243864,-736.48,0.00016438,2]
[369052655,1751446243873,-460.0,0.00016438,2]
[369052657,1751446243882,-833.75,0.00016438,2]
[369052659,1751446243892,-460.0,0.00016438,2]
[369052661,1751446243902,-460.0,0.00016438,2]
[369052663,1751446243911,-500.0,0.00016438,2]
[369052665,1751446243921,-501.10070424,0.00016473,2]
[369052667,1751446243934,-500.0,0.00016473,2]
[369052669,1751446243944,-500.0,0.00016473,2]
[369052671,1751446243953,-506.39596448,0.00016473,2]
[369052673,1751446243963,-500.0,0.00016473,2]
[369052675,1751446243972,-502.43379936,0.00016473,2]
[369052677,1751446243981,-500.0,0.00016473,2]
[369052679,1751446243990,-500.0,0.00016473,2]
[369052681,1751446243999,-716.195754,0.00016483,2]
[369052683,1751446244010,-849.31160859,0.00016538,2]
[369052685,1751446244019,-461.19524361,0.00016712,2]
[369052687,1751446244028,-460.0,0.00016712,2]
[369052689,1751446244038,-460.0,0.00016712,2]
[369052691,1751446244047,-460.0,0.00016712,2]
[369052693,1751446244057,-460.0,0.00016712,2]
[369052695,1751446244066,-460.0,0.00016712,2]
[369052697,1751446244076,-436.38572518,0.00016712,2]
[369052699,1751446244085,-460.0,0.00016712,2]
[369052701,1751446244094,-460.0,0.00016712,2]
[369052703,1751446244103,-460.0,0.00016712,2]
[369052705,1751446244112,-460.0,0.00016712,2]
[369052707,1751446244122,-460.0,0.00016712,2]
[369052709,1751446244131,-460.0,0.00016712,2]
[369052711,1751446244141,-460.0,0.00016712,2]
[369052713,1751446244151,-460.0,0.00016712,2]
[369052715,1751446244161,-460.0,0.00016712,2]
[369052717,1751446244171,-415.63177093,0.00016712,2]
[369052719,1751446244181,-460.0,0.00016712,2]
[369052721,1751446244191,-367.25531293,0.00016712,2]
[369052723,1751446244200,-460.0,0.00016712,2]
[369052725,1751446244210,-540.83205486,0.00016712,2]
[369052727,1751446244220,-460.0,0.00016712,2]
[369052729,1751446244230,-460.0,0.00016712,2]
[369052731,1751446244239,-460.0,0.00016712,2]
[369052732,1751446244248,-461.44061235,0.00016712,2]
[369052734,1751446244257,-460.0,0.00016712,2]
[369052736,1751446244266,-460.0,0.00016712,2]
[369052738,1751446244276,-460.0,0.00016712,2]
[369052740,1751446244285,-460.0,0.00016712,2]
[369052742,1751446244295,-460.0,0.00016712,2]
[369052744,1751446244305,-460.0,0.00016712,2]
[369052746,1751446244314,-462.08142032,0.00016712,2]
[369052748,1751446244323,-460.0,0.00016712,2]
[369052750,1751446244333,-460.0,0.00016712,2]
[369052752,1751446244342,-460.0,0.00016712,2]
[369052754,1751446244352,-460.0,0.00016712,2]
[369052756,1751446244361,-461.4347746,0.00016712,2]
[369052758,1751446244370,-460.0,0.00016712,2]
[369052760,1751446244379,-460.0,0.00016712,2]
[369052762,1751446244388,-460.0,0.00016712,2]
[369052764,1751446244398,-460.0,0.00016712,2]
[369052766,1751446244408,-570.13853605,0.00016712,2]
[369052768,1751446244417,-460.0,0.00016712,2]
[369052770,1751446244426,-461.2275398,0.00016712,2]
[369052772,1751446244436,-460.0,0.00016712,2]
[369052774,1751446244446,-460.0,0.00016712,2]
[369052776,1751446244456,-460.0,0.00016712,2]
[369052778,1751446244465,-460.0,0.00016712,2]
[369052780,1751446244475,-460.0,0.00016712,2]
[369052782,1751446244487,-460.0,0.00016712,2]
[369052784,1751446244496,-461.30459053,0.00016712,2]
[369052786,1751446244506,-460.0,0.00016712,2]
[369052788,1751446244516,-460.0,0.00016712,2]
[369052790,1751446244525,-460.0,0.00016712,2]
[369052792,1751446244534,-460.0,0.00016712,2]
[369052794,1751446244544,-460.0,0.00016712,2]
[369052796,1751446244552,-468.88390202,0.00016712,2]
[369052798,1751446244561,-460.0,0.00016712,2]
[369052800,1751446244570,-460.0,0.00016712,2]
[369052802,1751446244580,-460.0,0.00016712,2]
[369052804,1751446244588,-460.0,0.00016712,2]
[369052806,1751446244597,-460.0,0.00016712,2]
[369052808,1751446244606,-460.0,0.00016712,2]
[369052810,1751446244614,-460.0,0.00016712,2]
[369052812,1751446244623,-460.0,0.00016712,2]
[369052814,1751446244631,-460.0,0.00016712,2]
[369052816,1751446244641,-415.69394816,0.00016712,2]
[369052832,1751446244650,-460.0,0.00016712,2]
[369052834,1751446244794,-427.70169704,0.00016712,2]
[369052837,1751446244804,-460.0,0.00016712,2]
[369052839,1751446244814,-460.0,0.00016712,2]
[369052841,1751446244823,-479.34165452,0.00016712,2]
[369052843,1751446244833,-460.0,0.00016712,2]
[369052845,1751446244843,-460.0,0.00016712,2]
[369052847,1751446244854,-192.48805887,0.00016712,2]
[369052849,1751446244862,-460.0,0.00016712,2]
[369052850,1751446244871,-239.90736306,0.00016712,2]
[369052852,1751446244879,-460.0,0.00016712,2]
[369052854,1751446244888,-567.8,0.00016712,2]
[369052856,1751446244896,-460.0,0.00016712,2]
[369052858,1751446244905,-460.0,0.00016712,2]
[369052860,1751446244916,-460.0,0.00016712,2]
[369052862,1751446244926,-460.0,0.00016712,2]
[369052864,1751446244935,-460.0,0.00016712,2]
[369052866,1751446244944,-462.49736194,0.00016712,2]
[369052868,1751446244953,-460.0,0.00016712,2]
[369052870,1751446244963,-675.62,0.00016712,2]
[369052872,1751446244972,-435.59996339,0.00016712,2]
[369052874,1751446244981,-460.0,0.00016712,2]
[369052876,1751446244991,-719.27,0.00016712,2]
[369052878,1751446245000,-479.3,0.00016712,2]
[369052880,1751446245010,-460.0,0.00016712,2]
[369052882,1751446245019,-460.0,0.00016712,2]
[369052884,1751446245028,-460.0,0.00016712,2]
[369052886,1751446245037,-460.0,0.00016712,2]
[369052888,1751446245047,-460.0,0.00016712,2]
[369052890,1751446245056,-460.0,0.00016712,2]
[369052892,1751446245065,-460.0,0.00016712,2]
[369052894,1751446245074,-759.71,0.00016712,2]
[369052896,1751446245084,-460.0,0.00016712,2]
[369052898,1751446245093,-460.0,0.00016712,2]
[369052900,1751446245103,-931.62,0.00016712,2]
[369052902,1751446245112,-460.0,0.00016712,2]
[369052904,1751446245121,-460.0,0.00016712,2]
[369052906,1751446245131,-460.0,0.00016712,2]
[369052908,1751446245140,-460.0,0.00016712,2]
[369052910,1751446245151,-460.0,0.00016712,2]
[369052912,1751446245160,-460.0,0.00016712,2]
[369052914,1751446245170,-460.0,0.00016712,2]
[369052916,1751446245179,-460.0,0.00016712,2]
[369052918,1751446245189,-460.0,0.00016712,2]
[369052920,1751446245198,-460.0,0.00016712,2]
[369052922,1751446245207,-460.0,0.00016712,2]
[369052924,1751446245217,-617.48,0.00016712,2]
[369052926,1751446245227,-460.0,0.00016712,2]
[369052928,1751446245236,-460.0,0.00016712,2]
[369052930,1751446245245,-430.0,0.00016712,2]
[369052932,1751446245255,-460.0,0.00016712,2]
[369052934,1751446245265,-460.0,0.00016712,2]
[369052936,1751446245275,-468.31,0.00016712,2]
[369052938,1751446245284,-460.0,0.00016712,2]
[369052940,1751446245293,-460.0,0.00016712,2]
[369052942,1751446245303,-460.0,0.00016712,2]
[369052944,1751446245313,-460.0,0.00016712,2]
[369052946,1751446245322,-460.0,0.00016712,2]
[369052948,1751446245331,-460.0,0.00016712,2]
[369052950,1751446245341,-502.16447343,0.00016712,2]
[369052952,1751446245350,-460.0,0.00016712,2]
[369052954,1751446245359,-1058.65,0.00016712,2]
[369052956,1751446245369,-460.0,0.00016712,2]
[369052958,1751446245379,-460.0,0.00016712,2]
[369052960,1751446245388,-460.0,0.00016712,2]
[369052962,1751446245399,-557.73507264,0.00016712,2]
[369052964,1751446245409,-465.80355262,0.00016712,2]
[369052966,1751446245419,-460.0,0.00016712,2]
[369052968,1751446245428,-460.0,0.00016712,2]
[369052971,1751446245438,-460.0,0.00016712,2]
[369052973,1751446245448,-460.0,0.00016712,2]
[369052975,1751446245457,-460.0,0.00016712,2]
[369052977,1751446245466,-460.0,0.00016712,2]
[369052979,1751446245476,-1050.38,0.00016712,2]
[369052981,1751446245485,-460.0,0.00016712,2]
[369052983,1751446245495,-460.0,0.00016712,2]
[369052985,1751446245504,-460.0,0.00016712,2]
[369052987,1751446245514,-460.0,0.00016712,2]
[369052988,1751446245524,-460.0,0.00016712,2]
[369052991,1751446245533,-460.0,0.00016712,2]
[369052993,1751446245543,-460.0,0.00016712,2]
[369052995,1751446245553,-463.75090706,0.00016712,2]
[369052997,1751446245563,-460.0,0.00016712,2]
[369052999,1751446245573,-460.0,0.00016712,2]
[369053001,1751446245582,-460.0,0.00016712,2]
[369053003,1751446245591,-500.0,0.00016712,2]
[369053005,1751446245601,-460.0,0.00016712,2]
[369053007,1751446245610,-1020.41,0.00016712,2]
[369053009,1751446245620,-460.0,0.00016712,2]
[369053011,1751446245629,-460.0,0.00016712,2]
[369053013,1751446245639,-460.0,0.00016712,2]
[369053015,1751446245649,-460.0,0.00016712,2]
[369053017,1751446245659,-936.85,0.00016712,2]
[369053019,1751446245669,-460.0,0.00016712,2]
[369053021,1751446245679,-460.0,0.00016712,2]
[369053023,1751446245688,-492.08,0.00016712,2]
[369053025,1751446245698,-460.0,0.00016712,2]
[369053027,1751446245707,-460.0,0.00016712,2]
[369053029,1751446245716,-460.0,0.00016712,2]
[369053031,1751446245726,-460.0,0.00016712,2]
[369053033,1751446245735,-460.0,0.00016712,2]
[369053035,1751446245745,-460.0,0.00016712,2]
[369053037,1751446245758,-713.77,0.00016712,2]
[369053039,1751446245767,-460.0,0.00016712,2]
[369053041,1751446245776,-1984.15,0.00016712,2]
[369053043,1751446245787,-460.0,0.00016712,2]
[369053045,1751446245798,-460.0,0.00016712,2]
[369053047,1751446245810,-639.15,0.00016712,2]
[369053050,1751446245820,-445.1151962,0.00016712,2]
[369053052,1751446245831,-489.59198513,0.00016712,2]
[369053054,1751446245841,-460.0,0.00016712,2]
[369053056,1751446245850,-510.56,0.00016712,2]
[369053058,1751446245859,-460.0,0.00016712,2]
[369053060,1751446245869,-1341.06,0.00016712,2]
[369053062,1751446245879,-1965.29,0.00016712,2]
[369053064,1751446245888,-1463.66,0.00016712,2]
[369053065,1751446245897,-460.0,0.00016712,2]
[369053067,1751446245906,-460.0,0.00016712,2]
[369053069,1751446245916,-588.79,0.00016712,2]
[369053071,1751446245925,-602.44112391,0.00016712,2]
[369053073,1751446245935,-460.0,0.00016712,2]
[369053075,1751446245944,-705.4,0.00016712,2]
[369053077,1751446245953,-460.0,0.00016712,2]
[369053079,1751446245962,-460.0,0.00016712,2]
[369053081,1751446245972,-1283.86,0.00016712,2]
[369053083,1751446245981,-460.0,0.00016712,2]
[369053085,1751446245991,-460.0,0.00016712,2]
[369053087,1751446246000,-460.0,0.00016712,2]
[369053089,1751446246010,-460.0,0.00016712,2]
[369053091,1751446246019,-460.0,0.00016712,2]
[369053093,1751446246028,-468.09120899,0.00016712,2]
[369053095,1751446246038,-1651.96,0.00016712,2]
[369053096,1751446246047,-460.0,0.00016712,2]
[369053097,1751446246057,-3551.5,0.00016712,2]
[369053098,1751446246066,-460.0,0.00016712,2]
[369053099,1751446246075,-460.0,0.00016712,2]
[369053100,1751446246085,-462.73643212,0.00016712,2]
[369053101,1751446246095,-460.0,0.00016712,2]
[369053102,1751446246104,-460.0,0.00016712,2]
[369053103,1751446246114,-715.93,0.00016712,2]
[369053104,1751446246123,-460.0,0.00016712,2]
[369053105,1751446246133,-605.18,0.00016712,2]
[369053106,1751446246143,-460.0,0.00016712,2]
[369053107,1751446246152,-460.0,0.00016712,2]
[369053108,1751446246162,-5373.03,0.00016712,2]
[369053109,1751446246171,-460.0,0.00016712,2]
[369053110,1751446246181,-464.13877838,0.00016712,2]
[369053112,1751446246190,-342.28803065,0.00016712,2]
[369053114,1751446246200,-1188.97,0.00016712,2]
[369053116,1751446246209,-460.0,0.00016712,2]
[369053118,1751446246218,-3210.9,0.00016712,2]
[369053120,1751446246228,-855.64,0.00016712,2]
[369053122,1751446246237,-741.32,0.00016712,2]
[369053124,1751446246247,-460.0,0.00016712,2]
[369053126,1751446246256,-460.0,0.00016712,2]
[369053128,1751446246265,-1028.23,0.00016712,2]
[369053130,1751446246275,-460.0,0.00016712,2]
[369053132,1751446246285,-460.0,0.00016712,2]
[369053134,1751446246295,-460.0,0.00016712,2]
[369053136,1751446246306,-1054.53,0.00016712,2]
[369053138,1751446246315,-460.0,0.00016712,2]
[369053140,1751446246324,-1640.39,0.00016712,2]
[369053142,1751446246334,-704.86,0.00016712,2]
[369053144,1751446246343,-460.0,0.00016712,2]
[369053146,1751446246353,-460.0,0.00016712,2]
[369053148,1751446246362,-460.0,0.00016712,2]
[369053150,1751446246371,-460.0,0.00016712,2]
[369053152,1751446246380,-460.0,0.00016712,2]
[369053154,1751446246390,-460.0,0.00016712,2]
[369053156,1751446246400,-460.0,0.00016712,2]
[369053158,1751446246409,-460.0,0.00016712,2]
[369053160,1751446246418,-460.0,0.00016712,2]
[369053162,1751446246427,-460.0,0.00016712,2]
[369053164,1751446246437,-849.27,0.00016712,2]
[369053166,1751446246447,-519.86,0.00016712,2]
[369053168,1751446246456,-699.08,0.00016712,2]
[369053170,1751446246466,-1667.26,0.00016712,2]
[369053172,1751446246475,-1066.36,0.00016712,2]
[369053174,1751446246486,-460.0,0.00016712,2]
[369053177,1751446246496,-2824.0,0.00016712,2]
[369053179,1751446246505,-521.36,0.00016712,2]
[369053180,1751446246515,-460.0,0.00016712,2]
[369053182,1751446246524,-460.0,0.00016712,2]
[369053185,1751446246533,-460.0,0.00016712,2]
[369053186,1751446246543,-460.0,0.00016712,2]
[369053188,1751446246552,-462.1809812,0.00016712,2]
[369053191,1751446246561,-829.75,0.00016712,2]
[369053193,1751446246570,-460.0,0.00016712,2]
[369053195,1751446246579,-460.0,0.00016712,2]
[369053197,1751446246589,-556.03665775,0.00016712,2]
[369053198,1751446246599,-460.0,0.00016712,2]
[369053201,1751446246608,-499.94,0.00016712,2]
[369053202,1751446246618,-843.41,0.00016712,2]
[369053204,1751446246627,-460.0,0.00016712,2]
[369053206,1751446246636,-367.75288632,0.00016712,2]
[369053209,1751446246646,-460.0,0.00016712,2]
[369053210,1751446246655,-460.0,0.00016712,2]
[369053212,1751446246665,-460.0,0.00016712,2]
[369053214,1751446246674,-460.0,0.00016712,2]
[369053216,1751446246683,-460.0,0.00016712,2]
[369053218,1751446246692,-513.23,0.00016712,2]
[369053220,1751446246702,-460.0,0.00016712,2]
[369053222,1751446246712,-460.0,0.00016712,2]
[369053224,1751446246721,-460.0,0.00016712,2]
[369053227,1751446246731,-460.0,0.00016712,2]
[369053228,1751446246740,-460.0,0.00016712,2]
[369053230,1751446246752,-1075.58,0.00016712,2]
[369053233,1751446246762,-2881.49,0.00016712,2]
[369053235,1751446246771,-460.0,0.00016712,2]
[369053237,1751446246781,-594.93,0.00016712,2]
[369053239,1751446246791,-889.55,0.00016712,2]
[369053240,1751446246802,-460.0,0.00016712,2]
[369053243,1751446246813,-460.0,0.00016712,2]
[369053245,1751446246822,-460.0,0.00016712,2]
[369053247,1751446246832,-460.0,0.00016712,2]
[369053248,1751446246842,-460.0,0.00016712,2]
[369053250,1751446246852,-460.0,0.00016712,2]
[369053252,1751446246862,-460.0,0.00016712,2]
[369053255,1751446246872,-3374.99,0.00016712,2]
[369053257,1751446246881,-460.0,0.00016712,2]
[369053259,1751446246891,-460.0,0.00016712,2]
[369053261,1751446246901,-634.33,0.00016712,2]
[369053263,1751446246910,-460.0,0.00016712,2]
[369053265,1751446246920,-1273.46,0.00016712,2]
[369053267,1751446246929,-460.0,0.00016712,2]
[369053269,1751446246938,-460.0,0.00016712,2]
[369053270,1751446246948,-460.0,0.00016712,2]
[369053272,1751446246958,-460.0,0.00016712,2]
[369053274,1751446246967,-460.0,0.00016712,2]
[369053276,1751446246976,-460.0,0.00016712,2]
[369053278,1751446246986,-460.0,0.00016712,2]
[369053280,1751446246996,-844.65,0.00016712,2]
[369053282,1751446247005,-789.41,0.00016712,2]
[369053284,1751446247014,-460.0,0.00016712,2]
[369053286,1751446247023,-460.0,0.00016712,2]
[369053288,1751446247032,-460.0,0.00016712,2]
[369053290,1751446247042,-976.59,0.00016712,2]
[369053292,1751446247051,-2186.95,0.00016712,2]
[369053294,1751446247060,-460.0,0.00016712,2]
[369053296,1751446247070,-859.52,0.00016712,2]
[369053298,1751446247079,-510.53,0.00016712,2]
[369053300,1751446247088,-460.0,0.00016712,2]
[369053302,1751446247097,-460.0,0.00016712,2]
[369053304,1751446247106,-460.0,0.00016712,2]
[369053306,1751446247116,-878.11,0.00016712,2]
[369053308,1751446247125,-460.0,0.00016712,2]
[369053310,1751446247134,-6607.59,0.00016712,2]
[369053312,1751446247143,-460.0,0.00016712,2]
[369053314,1751446247152,-460.0,0.00016712,2]
[369053316,1751446247161,-820.75,0.00016712,2]
[369053318,1751446247170,-460.0,0.00016712,2]
[369053320,1751446247179,-821.71,0.00016712,2]
[369053322,1751446247188,-460.0,0.00016712,2]
[369053324,1751446247198,-460.0,0.00016712,2]
[369053326,1751446247207,-1821.34,0.00016712,2]
[369053328,1751446247216,-461.73521313,0.00016712,2]
[369053330,1751446247225,-460.0,0.00016712,2]
[369053332,1751446247234,-460.0,0.00016712,2]
[369053334,1751446247243,-460.0,0.00016712,2]
[369053336,1751446247252,-460.0,0.00016712,2]
[369053338,1751446247261,-460.0,0.00016712,2]
[369053340,1751446247270,-460.0,0.00016712,2]
[369053342,1751446247279,-460.0,0.00016712,2]
[369053344,1751446247288,-460.0,0.00016712,2]
[369053346,1751446247297,-510.4067652,0.00016712,2]
[369053348,1751446247307,-460.0,0.00016712,2]
[369053350,1751446247317,-464.28,0.00016712,2]
[369053351,1751446247326,-460.0,0.00016712,2]
[369053354,1751446247335,-460.0,0.00016712,2]
[369053356,1751446247344,-472.32446364,0.00016712,2]
[369053358,1751446247354,-461.03655567,0.00016712,2]
[369053360,1751446247363,-574.46820879,0.00016712,2]
[369053362,1751446247372,-727.14,0.00016712,2]
[369053364,1751446247381,-2275.66,0.00016712,2]
[369053366,1751446247390,-460.0,0.00016712,2]
[369053368,1751446247400,-460.0,0.00016712,2]
[369053369,1751446247409,-460.0,0.00016712,2]
[369053371,1751446247419,-538.53,0.00016712,2]
[369053373,1751446247429,-461.04875305,0.00016712,2]
[369053375,1751446247438,-460.0,0.00016712,2]
[369053377,1751446247448,-460.0,0.00016712,2]
[369053379,1751446247457,-460.0,0.00016712,2]
[369053381,1751446247466,-460.0,0.00016712,2]
[369053383,1751446247475,-460.0,0.00016712,2]
[369053385,1751446247484,-460.0,0.00016712,2]
[369053387,1751446247494,-532.83,0.00016712,2]
[369053389,1751446247503,-460.0,0.00016712,2]
[369053391,1751446247512,-4977.12,0.00016712,2]
[369053393,1751446247522,-968.78,0.00016712,2]
[369053395,1751446247531,-460.0,0.00016712,2]
[369053397,1751446247540,-430.97481887,0.00016712,2]
[369053399,1751446247549,-460.0,0.00016712,2]
[369053401,1751446247559,-736.48,0.00016712,2]
[369053403,1751446247568,-460.0,0.00016712,2]
[369053405,1751446247577,-833.75,0.00016712,2]
[369053407,1751446247586,-460.0,0.00016712,2]
[369053409,1751446247595,-2773.26161577,0.00016749,2]
[369053411,1751446247604,-500.0,0.00016773,2]
[369053413,1751446247613,-500.0,0.00016773,2]
[369053415,1751446247622,-318.67329312,0.00016773,2]
[369053417,1751446247632,-492.30418994,0.00016773,2]
[369053419,1751446247641,-1000.0,0.00016821,2]
[369053421,1751446247650,-151.0,0.000169,2]
[369053423,1751446247659,-500.0,0.00016904,2]
[369053425,1751446247669,-500.0,0.00016904,2]
[369053427,1751446247678,-500.0,0.00016931,2]
[369053429,1751446247687,-500.0,0.00016931,2]
[369053431,1751446247696,-500.0,0.00016959,2]
[369053433,1751446247705,-302.0,0.00016959,2]
[369053435,1751446247714,-500.0,0.00016973,2]
[369053437,1751446247724,-5000.0,0.00016976,2]
[369053439,1751446247733,-460.0,0.00016986,2]
[369053441,1751446247743,-460.0,0.00016986,2]
[369053443,1751446247753,-329.07869915,0.00016986,2]
[369053445,1751446247763,-151.0,0.00016986,2]
[369053455,1751446247772,-460.0,0.00016986,2]
[369053456,1751446247903,-151.0,0.00016986,2]
[369053458,1751446247913,-260.064568,0.00016986,2]
[369053460,1751446247922,-151.0,0.00016986,2]
[369053462,1751446247931,-460.0,0.00016986,2]
[369053464,1751446247940,-460.0,0.00016986,2]
[369053466,1751446247949,-392.21343483,0.00016986,2]
[369053468,1751446247958,-460.0,0.00016986,2]
[369053470,1751446247968,-460.0,0.00016986,2]
[369053472,1751446247977,-460.0,0.00016986,2]
[369053474,1751446247986,-157.409072,0.00016986,2]
[369053476,1751446247995,-157.409072,0.00016986,2]
[369053478,1751446248004,-460.0,0.00016986,2]
[369053479,1751446248013,-464.88762049,0.00016986,2]
[369053481,1751446248022,-460.0,0.00016986,2]
[369053483,1751446248032,-460.0,0.00016986,2]
[369053485,1751446248042,-315.77731311,0.00016986,2]
[369053487,1751446248052,-460.0,0.00016986,2]
[369053489,1751446248061,-460.0,0.00016986,2]
[369053491,1751446248071,-460.0,0.00016986,2]
[369053493,1751446248080,-375.38774764,0.00016986,2]
[369053495,1751446248089,-460.0,0.00016986,2]
[369053497,1751446248098,-460.0,0.00016986,2]
[369053499,1751446248108,-460.0,0.00016986,2]
[369053501,1751446248117,-460.0,0.00016986,2]
[369053503,1751446248126,-460.0,0.00016986,2]
[369053505,1751446248136,-460.0,0.00016986,2]
[369053507,1751446248145,-460.0,0.00016986,2]
[369053509,1751446248154,-460.0,0.00016986,2]
[369053511,1751446248164,-460.0,0.00016986,2]
[369053513,1751446248173,-460.0,0.00016986,2]
[369053515,1751446248183,-460.0,0.00016986,2]
[369053517,1751446248191,-460.0,0.00016986,2]
[369053519,1751446248200,-464.43605088,0.00016986,2]
[369053521,1751446248210,-567.8,0.00016986,2]
[369053523,1751446248219,-460.0,0.00016986,2]
[369053525,1751446248228,-460.0,0.00016986,2]
[369053527,1751446248238,-460.0,0.00016986,2]
[369053529,1751446248247,-460.0,0.00016986,2]
[369053531,1751446248257,-675.62,0.00016986,2]
[369053533,1751446248267,-460.0,0.00016986,2]
[369053535,1751446248276,-719.27,0.00016986,2]
[369053537,1751446248285,-479.3,0.00016986,2]
[369053538,1751446248294,-460.0,0.00016986,2]
[369053539,1751446248304,-460.0,0.00016986,2]
[369053540,1751446248314,-460.0,0.00016986,2]
[369053541,1751446248323,-460.0,0.00016986,2]
[369053542,1751446248333,-460.0,0.00016986,2]
[369053543,1751446248343,-759.71,0.00016986,2]
[369053544,1751446248353,-460.0,0.00016986,2]
[369053545,1751446248362,-931.62,0.00016986,2]
[369053546,1751446248372,-460.0,0.00016986,2]
[369053547,1751446248381,-460.0,0.00016986,2]
[369053548,1751446248390,-460.0,0.00016986,2]
[369053549,1751446248399,-460.0,0.00016986,2]
[369053550,1751446248409,-321.84247441,0.00016986,2]
[369053551,1751446248417,-460.0,0.00016986,2]
[369053552,1751446248427,-460.0,0.00016986,2]
[369053553,1751446248436,-208.88434182,0.00016986,2]
[369053555,1751446248445,-460.0,0.00016986,2]
[369053556,1751446248454,-617.48,0.00016986,2]
[369053558,1751446248463,-460.0,0.00016986,2]
[369053560,1751446248473,-460.0,0.00016986,2]
[369053563,1751446248483,-471.74372618,0.00016986,2]
[369053565,1751446248492,-460.0,0.00016986,2]
[369053567,1751446248502,-468.31,0.00016986,2]
[369053569,1751446248511,-460.0,0.00016986,2]
[369053571,1751446248520,-251.70973992,0.00016986,2]
[369053573,1751446248529,-460.0,0.00016986,2]
[369053574,1751446248538,-460.0,0.00016986,2]
[369053576,1751446248547,-1058.65,0.00016986,2]
[369053578,1751446248556,-460.0,0.00016986,2]
[369053580,1751446248566,-460.0,0.00016986,2]
[369053582,1751446248575,-460.0,0.00016986,2]